[Event "1st Goa GM Open 2018"]
[Site "Taleigao"]
[Date "2018.10.13"]
[Round "1"]
[White "Idani, Pouya"]
[Black "Sa, Kannan"]
[Result "1-0"]
[ECO "C40"]
[WhiteElo "2588"]
[BlackElo "1977"]
[Annotator "RC"]
[PlyCount "59"]
[EventDate "2018.10.13"]
[EventType "swiss"]
[EventCountry "IND"]
[SourceTitle "playchess.com"]
[Source "ChessBase"]
[SourceQuality "1"]
[TimeControl "5400+30"]

1. e4 {[%emt 0:00:00]} e5 {[%emt 0:00:00]} 2. Nf3 {[%emt 0:00:00]} Qe7 {[%emt 0:00:00]} 3. Nc3 {[%emt 0:01:02]} c6 {[%emt 0:00:05]} 4. Bc4 {[%emt 0:00:52]} d6 {[%emt 0:00:11]} 5. O-O {[%emt 0:00:35]} h6 {[%emt 0:00:48]} 6. d4 {[%emt 0:00:50]} Nf6 {[%emt 0:00:26]} 7. a4 {[%emt 0:00:43]} Bg4 {[%emt 0:04:34]} 8. Be3 {[%emt 0:07:48]} Nbd7 {[%emt 0:02:39]} 9. Re1 {[%emt 0:00:29]} g6 {[%emt 0:00:27]} 10. a5 {[%emt 0:01:11]} Bg7 {[%emt 0:01:19]} 11. d5 {[%emt 0:00:53]} c5 {[%emt 0:01:35]} 12. a6 {[%emt 0:00:07]} b6 {[%emt 0:00:33]} 13. Bb5 {[%emt 0:00:44]} O-O {[%emt 0:01:12]} 14. h3 {[%emt 0:00:41]} Bxf3 {[%emt 0:02:04]} 15. Qxf3 {[%emt 0:00:10]} Nb8 {[%emt 0:06:28]} 16. b4 {[%emt 0:04:05]} cxb4 {[%emt 0:02:31]} 17. Na2 {[%emt 0:00:06]} Nfd7 {[%emt 0:02:14]} 18. Nxb4 {[%emt 0:00:31]} Nc5 {[%emt 0:00:30]} 19. Bxc5 {[%emt 0:03:22]} dxc5 {[%emt 0:11:02]} 20. d6 {[%emt 0:00:16]} Qe6 {[%emt 0:00:25]} 21. Nd5 {[%emt 0:01:19]} Qxd6 {[%emt 0:01:52]} 22. Red1 {[%emt 0:00:30]} Kh7 {[%emt 0:06:34]} 23. Qa3 {[%emt 0:01:59]} Rc8 {[%emt 0:22:43]} 24. Qa4 {[%emt 0:01:37]} h5 {[%emt 0:16:12]} 25. c3 {[%emt 0:02:01]} Bf8 {[%emt 0:09:40]} 26. Rd3 {[%emt 0:02:26]} c4 {[%emt 0:02:26]} 27. Rf3 {[%emt 0:00:30]} f5 {[%emt 0:02:42]} 28. Rd1 {[%emt 0:00:18]} Rc5 {[%emt 0:00:55]} 29. Ne3 {[%emt 0:01:15]} Qc7 {[%emt 0:00:56]} 30. exf5 {[%emt 0:00:06]} 1-0

[Event "1st Goa GM Open 2018"]
[Site "Taleigao"]
[Date "2018.10.14"]
[Round "2"]
[White "Amonatov, Farrukh"]
[Black "Mehdi Hasan Parag"]
[Result "1-0"]
[ECO "B12"]
[WhiteElo "2615"]
[BlackElo "2209"]
[Annotator "ChessBase"]
[PlyCount "55"]
[EventDate "2018.10.13"]
[EventType "swiss"]
[EventCountry "IND"]
[SourceTitle "playchess.com"]
[Source "ChessBase"]
[SourceQuality "1"]
[TimeControl "5400+30"]

1. e4 {[%emt 0:00:00]} c6 {[%emt 0:00:00]} 2. d4 {[%emt 0:00:00]} d5 {[%emt 0:00:00]} 3. e5 {[%emt 0:00:00]} c5 {[%emt 0:00:30]} 4. dxc5 {[%emt 0:00:41]} e6 {[%emt 0:00:17]} 5. Qg4 {[%emt 0:00:11]} Nd7 {[%emt 0:07:41]} 6. Bb5 {[%emt 0:01:53]} Qc7 {[%emt 0:00:41]} 7. Nf3 {[%emt 0:00:30]} Qxc5 {[%emt 0:01:54]} 8. Nc3 {[%emt 0:01:50]} a6 {[%emt 0:00:19]} 9. Bd3 {[%emt 0:06:46]} Qc7 {[%emt 0:01:28]} 10. Bf4 {[%emt 0:01:26]} Ne7 {[%emt 0:05:06]} 11. O-O {[%emt 0:00:46]} Nc5 {[%emt 0:00:51]} 12. Be2 {[%emt 0:03:42]} Ng6 {[%emt 0:00:20]} 13. Bg3 {[%emt 0:01:25]} Be7 {[%emt 0:04:52]} 14. h4 {[%emt 0:01:38]} h5 {[%emt 0:01:02]} 15. Qd4 {[%emt 0:00:06]} Qc6 {[%emt 0:03:20]} 16. a4 {[%emt 0:03:12]} Bd7 {[%emt 0:01:17]} 17. Rfd1 {[%emt 0:04:08]} Rc8 {[%emt 0:04:47]} 18. Qe3 {[%emt 0:04:39]} b6 {[%emt 0:22:40]} 19. Ng5 {[%emt 0:06:27]} a5 {[%emt 0:02:53]} 20. Nb5 {[%emt 0:03:33]} Ra8 {[%emt 0:07:47]} 21. c4 {[%emt 0:05:10]} Bxg5 {[%emt 0:01:27]} 22. hxg5 {[%emt 0:00:12]} h4 {[%emt 0:00:45]} 23. Nd6+ {[%emt 0:01:08]} Ke7 {[%emt 0:00:23]} 24. cxd5 {[%emt 0:01:56]} exd5 {[%emt 0:00:10]} 25. Bb5 {[%emt 0:00:20]} Qc7 {[%emt 0:02:42]} 26. e6 {[%emt 0:00:54]} hxg3 {[%emt 0:01:36]} 27. exd7+ {[%emt 0:00:58]} Kxd6 {[%emt 0:00:31]} 28. Rxd5+ {[%emt 0:00:12] Ke7 Rdd1+} 1-0

[Event "1st Goa GM Open 2018"]
[Site "Taleigao"]
[Date "2018.10.14"]
[Round "2"]
[White "Vardan Nagpal"]
[Black "Lokesh, N.."]
[Result "1-0"]
[ECO "A46"]
[WhiteElo "2433"]
[BlackElo "2104"]
[Annotator "ChessBase"]
[PlyCount "93"]
[EventDate "2018.10.13"]
[EventType "swiss"]
[EventCountry "IND"]
[SourceTitle "playchess.com"]
[Source "ChessBase"]
[SourceQuality "1"]
[TimeControl "5400+30"]

1. d4 {[%emt 0:00:00]} Nf6 {[%emt 0:03:53]} 2. Nf3 {[%emt 0:00:00]} e6 {[%emt 0:00:08]} 3. Bf4 {[%emt 0:00:00]} d5 {[%emt 0:01:02]} 4. e3 {[%emt 0:00:00]} c5 {[%emt 0:00:32]} 5. c3 {[%emt 0:00:01]} Nc6 {[%emt 0:00:05]} 6. Nbd2 {[%emt 0:00:06]} Bd6 {[%emt 0:01:38]} 7. Bg3 {[%emt 0:00:05]} O-O {[%emt 0:00:25]} 8. Bb5 {[%emt 0:00:04]} Ne7 {[%emt 0:14:21]} 9. Bd3 {[%emt 0:00:08]} Nf5 {[%emt 0:20:39]} 10. Bxf5 {[%emt 0:00:22]} exf5 {[%emt 0:00:06]} 11. Bxd6 {[%emt 0:00:04]} Qxd6 {[%emt 0:00:07]} 12. dxc5 {[%emt 0:00:03]} Qxc5 {[%emt 0:00:08]} 13. O-O {[%emt 0:00:04]} Qc7 {[%emt 0:07:34]} 14. Nb3 {[%emt 0:15:14]} f4 {[%emt 0:07:05]} 15. exf4 {[%emt 0:04:03]} Qxf4 {[%emt 0:00:07]} 16. Qd2 {[%emt 0:00:11]} Qxd2 {[%emt 0:02:58]} 17. Nfxd2 {[%emt 0:00:20]} Bf5 {[%emt 0:00:24]} 18. Rfe1 {[%emt 0:14:19]} Rfe8 {[%emt 0:01:51]} 19. Nf1 {[%emt 0:00:22]} a5 {[%emt 0:20:54]} 20. Rxe8+ {[%emt 0:15:17]} Nxe8 {[%emt 0:00:19]} 21. Ne3 {[%emt 0:00:05]} Be6 {[%emt 0:00:59]} 22. a4 {[%emt 0:00:09]} Nd6 {[%emt 0:07:24]} 23. Rd1 {[%emt 0:00:44]} Nc4 {[%emt 0:07:29]} 24. Nxc4 {[%emt 0:00:38]} dxc4 {[%emt 0:00:02]} 25. Nc5 {[%emt 0:00:02]} Rb8 {[%emt 0:01:26]} 26. Rd6 {[%emt 0:15:16]} b6 {[%emt 0:00:50]} 27. Na6 {[%emt 0:10:12]} Re8 {[%emt 0:00:21]} 28. Rxb6 {[%emt 0:00:16]} Bd7 {[%emt 0:00:28]} 29. f3 {[%emt 0:05:25]} Bxa4 {[%emt 0:00:07]} 30. Kf2 {[%emt 0:00:47]} Kf8 {[%emt 0:00:57]} 31. Nc5 {[%emt 0:00:39]} Bd1 {[%emt 0:00:33]} 32. Rd6 {[%emt 0:03:24]} Bc2 {[%emt 0:00:21]} 33. Rd4 {[%emt 0:01:15]} Bb3 {[%emt 0:00:44]} 34. Nd7+ {[%emt 0:00:43]} Ke7 {[%emt 0:00:24]} 35. Nb6 {[%emt 0:02:10]} Rb8 {[%emt 0:00:25]} 36. Nd5+ {[%emt 0:00:10]} Ke6 {[%emt 0:00:38]} 37. Ne3 {[%emt 0:01:12]} Ba2 {[%emt 0:00:32]} 38. Rd2 {[%emt 0:00:21]} Rc8 {[%emt 0:00:33]} 39. Ke2 {[%emt 0:01:49]} Bb1 {[%emt 0:00:10]} 40. Rd4 {[%emt 0:00:05]} Rb8 {[%emt 0:00:47]} 41. Nxc4 {[%emt 0:03:58]} Ba2 {[%emt 0:00:05]} 42. Nxa5 {[%emt 0:00:06]} Rxb2+ {[%emt 0:00:20]} 43. Rd2 {[%emt 0:00:00]} Rxd2+ {[%emt 0:00:37]} 44. Kxd2 {[%emt 0:00:01]} Kd5 {[%emt 0:00:13]} 45. Kc2 {[%emt 0:00:05]} Kc5 {[%emt 0:01:15]} 46. Nb3+ {[%emt 0:01:32]} Kd5 {[%emt 0:00:27]} 47. Kb2 {[%emt 0:00:51]} 1-0

[Event "1st Goa GM Open 2018"]
[Site "Taleigao"]
[Date "2018.10.14"]
[Round "2"]
[White "Dhulipalla Bala Chandra Prasa"]
[Black "Srihari L R"]
[Result "1/2-1/2"]
[ECO "D71"]
[WhiteElo "2380"]
[BlackElo "2170"]
[Annotator "NA"]
[PlyCount "31"]
[EventDate "2018.10.13"]
[EventType "swiss"]
[EventCountry "IND"]
[SourceTitle "playchess.com"]
[Source "ChessBase"]
[SourceQuality "1"]
[TimeControl "5400+30"]

1. d4 Nf6 2. c4 g6 3. g3 Bg7 {Predecessor:} 4. Bg2 $146 O-O 5. Nc3 Nc6 6. Nf3 d5 7. cxd5 Nxd5 8. O-O e5 9. Nxd5 e4 10. Nd2 Qxd5 11. e3 f5 12. b3 Be6 13. Ba3 Rfd8 14. Rc1 Qd7 15. Qc2 Rac8 16. Rfd1 {0-1 (91) Duda,J (2737)-Grischuk,A (2766) chess.com INT 2018} 1/2-1/2

[Event "1st Goa GM Open 2018"]
[Site "Taleigao"]
[Date "2018.10.14"]
[Round "2"]
[White "Manigandan, S S"]
[Black "Kasparov, Sergey"]
[Result "0-1"]
[ECO "A57"]
[WhiteElo "2120"]
[BlackElo "2453"]
[Annotator "ChessBase"]
[PlyCount "112"]
[EventDate "2018.10.13"]
[EventType "swiss"]
[EventCountry "IND"]
[SourceTitle "playchess.com"]
[Source "ChessBase"]
[SourceQuality "1"]
[TimeControl "5400+30"]

1. d4 Nf6 2. c4 c5 3. d5 b5 4. cxb5 a6 5. Nc3 axb5 6. e4 b4 7. Nb5 d6 8. a4 g6 9. Qc2 Bg7 10. Nf3 O-O 11. Be2 Nbd7 12. O-O Nb6 13. Bd2 b3 14. Qxb3 Nxe4 15. Bc3 Nxc3 16. bxc3 Bb7 17. Rfd1 Qd7 18. Ra3 Ra5 19. c4 Rfa8 20. Rb1 Rxa4 21. Rxa4 Rxa4 22. Qc2 Ra6 23. h4 Bc8 24. Nbd4 Bb7 25. h5 Qe8 26. Nb5 Qd8 27. Ng5 Bc8 28. Bd3 Bf6 29. Ne4 Nd7 30. hxg6 hxg6 31. g3 Ne5 32. Nxf6+ exf6 33. Be4 f5 34. Bg2 Qf6 35. Nc7 Ra7 36. Nb5 Rb7 37. Qa4 Re7 38. Qa8 Re8 39. Nc7 Rf8 40. Rb8 Qd8 41. Nb5 Nd7 42. Nxd6 Nxb8 43. Qxb8 Ba6 44. Qxd8 Rxd8 45. Nb5 Bxb5 46. cxb5 c4 47. Kf1 Rb8 48. d6 Rxb5 49. d7 Rb8 50. Ke2 Kf8 51. Bd5 Rd8 52. Bc6 Ke7 53. Ke3 Rb8 54. Kd4 Rb2 55. Bd5 Rxf2 56. Bxf7 Kxf7 0-1

[Event "1st Goa GM Open 2018"]
[Site "Taleigao"]
[Date "2018.10.14"]
[Round "3"]
[White "Idani, Pouya"]
[Black "Anuj Shrivatri"]
[Result "1-0"]
[ECO "E62"]
[WhiteElo "2588"]
[BlackElo "2345"]
[Annotator "ChessBase"]
[PlyCount "157"]
[EventDate "2018.10.13"]
[EventType "swiss"]
[EventCountry "IND"]
[SourceTitle "playchess.com"]
[Source "ChessBase"]
[SourceQuality "1"]
[TimeControl "5400+30"]

1. d4 {[%emt 0:00:00]} Nf6 {[%emt 0:00:00]} 2. c4 {[%emt 0:00:00]} g6 {[%emt 0:00:00]} 3. g3 {[%emt 0:00:00]} Bg7 {[%emt 0:00:01]} 4. Bg2 {[%emt 0:00:00]} O-O {[%emt 0:00:09]} 5. Nf3 {[%emt 0:00:25]} d6 {[%emt 0:00:11]} 6. Nc3 {[%emt 0:00:38]} c6 {[%emt 0:00:24]} 7. O-O {[%emt 0:00:12]} Qa5 {[%emt 0:00:18]} 8. h3 {[%emt 0:04:26]} e5 {[%emt 0:00:29]} 9. e4 {[%emt 0:00:20]} Nbd7 {[%emt 0:00:22]} 10. Be3 {[%emt 0:01:17]} Nb6 {[%emt 0:00:51]} 11. Qd3 {[%emt 0:06:22]} exd4 {[%emt 0:00:39]} 12. Bxd4 {[%emt 0:00:41]} Qa6 {[%emt 0:15:32]} 13. b3 {[%emt 0:05:01]} d5 {[%emt 0:02:23]} 14. exd5 {[%emt 0:02:06]} cxd5 {[%emt 0:01:24]} 15. Nb5 {[%emt 0:00:19]} dxc4 {[%emt 0:12:13]} 16. bxc4 {[%emt 0:00:06]} Qa4 {[%emt 0:16:22]} 17. Qb3 {[%emt 0:08:49]} Bd7 {[%emt 0:05:28]} 18. Qxa4 {[%emt 0:14:56]} Nxa4 {[%emt 0:00:25]} 19. Nxa7 {[%emt 0:02:01]} b6 {[%emt 0:14:00]} 20. Nb5 {[%emt 0:00:12]} Bxb5 {[%emt 0:00:07]} 21. cxb5 {[%emt 0:00:03]} Nd7 {[%emt 0:00:40]} 22. Bxg7 {[%emt 0:01:49]} Kxg7 {[%emt 0:02:42]} 23. Nd4 {[%emt 0:00:01]} Ra5 {[%emt 0:01:54]} 24. Rfc1 {[%emt 0:05:20]} Nac5 {[%emt 0:02:29]} 25. Rc2 {[%emt 0:00:36]} Ra4 {[%emt 0:01:48]} 26. Rd1 {[%emt 0:00:27]} Ne5 {[%emt 0:03:16]} 27. Nc6 {[%emt 0:01:35]} Ned3 {[%emt 0:01:53]} 28. Bf1 {[%emt 0:10:05]} Nb4 {[%emt 0:00:54]} 29. Nxb4 {[%emt 0:00:05]} Rxb4 {[%emt 0:00:13]} 30. Rd6 {[%emt 0:00:08]} Rb8 {[%emt 0:01:43]} 31. Bc4 {[%emt 0:01:14]} Ra4 {[%emt 0:04:35]} 32. Kg2 {[%emt 0:02:33]} Rb4 {[%emt 0:01:44]} 33. Rc6 {[%emt 0:00:34]} h6 {[%emt 0:00:56]} 34. Rc7 {[%emt 0:00:20]} Rb7 {[%emt 0:00:21]} 35. Rc6 {[%emt 0:03:23]} Rb8 {[%emt 0:00:27]} 36. a3 {[%emt 0:02:49]} Ra4 {[%emt 0:02:20]} 37. Rc7 {[%emt 0:03:12]} Rb7 {[%emt 0:02:33]} 38. Rxb7 {[%emt 0:00:04]} Nxb7 {[%emt 0:00:05]} 39. Bxf7 Nc5 {[%emt 0:00:07]} 40. Bd5 {[%emt 0:01:50]} Rxa3 {[%emt 0:01:22]} 41. Re2 {[%emt 0:00:48]} Rd3 {[%emt 0:01:27]} 42. Bc6 {[%emt 0:00:09]} Kf6 {[%emt 0:01:31]} 43. Re8 {[%emt 0:01:29]} Rd4 {[%emt 0:01:20]} 44. Rb8 {[%emt 0:00:25]} Na4 {[%emt 0:00:07]} 45. Kf3 {[%emt 0:00:21]} Rb4 {[%emt 0:01:15]} 46. Ke3 {[%emt 0:01:39]} Rb2 {[%emt 0:00:10]} 47. Kd4 {[%emt 0:02:36]} Rb4+ {[%emt 0:02:15]} 48. Kd3 {[%emt 0:00:12]} Kg7 {[%emt 0:00:20]} 49. Ra8 {[%emt 0:01:59]} Kf6 {[%emt 0:00:49]} 50. Ra7 {[%emt 0:01:34]} h5 {[%emt 0:00:43]} 51. h4 {[%emt 0:01:36]} Ke6 {[%emt 0:00:23]} 52. Be8 {[%emt 0:00:24]} Kf6 {[%emt 0:00:28]} 53. Rf7+ {[%emt 0:00:46]} Ke5 {[%emt 0:00:52]} 54. Rg7 {[%emt 0:01:05]} Nc5+ {[%emt 0:00:17]} 55. Ke2 {[%emt 0:01:24]} Ne4 {[%emt 0:01:12]} 56. Bxg6 {[%emt 0:04:23]} Rb2+ {[%emt 0:00:26]} 57. Kf3 {[%emt 0:00:23]} Nxf2 {[%emt 0:00:44]} 58. Bxh5 {[%emt 0:00:19]} Nh1 {[%emt 0:00:45]} 59. Be8 {[%emt 0:01:39]} Rf2+ {[%emt 0:00:23]} 60. Ke3 {[%emt 0:00:35]} Ra2 {[%emt 0:00:40]} 61. Rg5+ {[%emt 0:00:56]} Kf6 {[%emt 0:00:14]} 62. Bc6 {[%emt 0:01:02]} Ra3+ {[%emt 0:00:23]} 63. Kf4 {[%emt 0:00:05]} Nf2 {[%emt 0:00:50]} 64. Rg8 {[%emt 0:00:47]} Nd3+ {[%emt 0:00:27]} 65. Ke4 {[%emt 0:00:35]} Nc5+ {[%emt 0:00:06]} 66. Kd4 {[%emt 0:00:28]} Ra4+ {[%emt 0:00:10]} 67. Ke3 {[%emt 0:00:16]} Ra3+ {[%emt 0:00:57]} 68. Kf2 {[%emt 0:00:05]} Nd3+ {[%emt 0:00:30]} 69. Kg2 {[%emt 0:00:07]} Ra2+ {[%emt 0:00:16]} 70. Kf1 {[%emt 0:00:50]} Ke5 {[%emt 0:00:56]} 71. Re8+ {[%emt 0:00:15]} Kf6 {[%emt 0:00:15]} 72. Re2 {[%emt 0:00:12]} Ra1+ {[%emt 0:00:08]} 73. Kg2 {[%emt 0:00:05]} Ne1+ {[%emt 0:00:25]} 74. Kh3 {[%emt 0:00:06]} Nd3 {[%emt 0:00:09]} 75. Be4 {[%emt 0:00:47]} Ne5 {[%emt 0:00:08]} 76. Rf2+ {[%emt 0:00:07]} Kg7 {[%emt 0:00:07]} 77. Rf5 {[%emt 0:00:34]} Nd7 {[%emt 0:00:09]} 78. Bc6 {[%emt 0:01:18]} Nf6 {[%emt 0:00:05]} 79. g4 1-0

[Event "1st Goa GM Open 2018"]
[Site "Taleigao"]
[Date "2018.10.14"]
[Round "3"]
[White "Malakhatko, Vadim"]
[Black "Sahoo, Utkal Ranjan"]
[Result "1-0"]
[ECO "E07"]
[WhiteElo "2552"]
[BlackElo "2332"]
[Annotator "ChessBase"]
[PlyCount "148"]
[EventDate "2018.10.13"]
[EventType "swiss"]
[EventCountry "IND"]
[SourceTitle "playchess.com"]
[Source "ChessBase"]
[SourceQuality "1"]
[TimeControl "5400+30"]

1. c4 {[%emt 0:00:00]} e6 {[%emt 0:01:12]} 2. g3 {[%emt 0:00:00]} Nf6 {[%emt 0:00:09]} 3. Bg2 {[%emt 0:00:00]} d5 {[%emt 0:00:33]} 4. Nf3 {[%emt 0:00:04]} Be7 {[%emt 0:00:17]} 5. O-O {[%emt 0:00:09]} Nbd7 {[%emt 0:01:37]} 6. d4 {[%emt 0:04:43]} O-O {[%emt 0:04:47]} 7. Nc3 {[%emt 0:06:29]} c6 {[%emt 0:06:47]} 8. Nd2 {[%emt 0:00:43]} b6 {[%emt 0:01:50]} 9. e4 {[%emt 0:00:14]} Bb7 {[%emt 0:01:53]} 10. e5 {[%emt 0:17:36]} Ne8 {[%emt 0:00:59]} 11. cxd5 {[%emt 0:00:14]} exd5 {[%emt 0:05:03]} 12. Re1 {[%emt 0:10:24]} Nc7 {[%emt 0:03:41]} 13. Nf1 {[%emt 0:09:15]} f5 {[%emt 0:07:16]} 14. exf6 {[%emt 0:03:13]} Bxf6 {[%emt 0:02:25]} 15. Bf4 {[%emt 0:00:18]} Re8 {[%emt 0:04:41]} 16. Rxe8+ {[%emt 0:00:16]} Nxe8 {[%emt 0:00:04]} 17. Qd3 {[%emt 0:07:38]} Qe7 {[%emt 0:06:16]} 18. Ne3 {[%emt 0:04:27]} Rd8 {[%emt 0:08:05]} 19. Nf5 {[%emt 0:02:46]} Qb4 {[%emt 0:01:35]} 20. Qd2 {[%emt 0:02:01]} Bc8 {[%emt 0:05:09]} 21. Re1 {[%emt 0:08:39]} Nf8 {[%emt 0:06:11]} 22. a3 {[%emt 0:01:50]} Qa5 {[%emt 0:03:46]} 23. Ne7+ {[%emt 0:00:58]} Bxe7 {[%emt 0:02:04]} 24. Rxe7 {[%emt 0:00:06]} Ng6 {[%emt 0:01:57]} 25. Qe3 {[%emt 0:10:18]} Nf6 {[%emt 0:01:59]} 26. Rc7 {[%emt 0:00:08]} Bd7 {[%emt 0:08:05]} 27. Rxd7 {[%emt 0:06:09]} Rxd7 {[%emt 0:01:52]} 28. Qe6+ {[%emt 0:00:04]} Rf7 {[%emt 0:02:58]} 29. Bd6 {[%emt 0:00:11]} Qa6 {[%emt 0:02:15]} 30. Bh3 {[%emt 0:00:07]} Qb7 {[%emt 0:01:14]} 31. Qe3 {[%emt 0:00:42]} Nf8 {[%emt 0:00:51]} 32. f3 {[%emt 0:00:46]} Qa8 {[%emt 0:00:56]} 33. b4 {[%emt 0:01:16]} a5 {[%emt 0:01:52]} 34. b5 {[%emt 0:01:31]} cxb5 {[%emt 0:01:00]} 35. Nxb5 {[%emt 0:00:05]} Qc6 {[%emt 0:00:14]} 36. a4 {[%emt 0:00:55]} Qc2 {[%emt 0:01:35]} 37. Nc3 {[%emt 0:02:37]} h6 {[%emt 0:00:49]} 38. Bf1 {[%emt 0:00:11]} Qb2 {[%emt 0:03:33]} 39. Bb5 {[%emt 0:00:44]} Qa1+ {[%emt 0:00:46]} 40. Kg2 {[%emt 0:00:16]} Qb2+ {[%emt 0:00:21]} 41. Ne2 {[%emt 0:00:43]} Qc2 {[%emt 0:01:02]} 42. h4 {[%emt 0:01:07]} Qg6 {[%emt 0:00:39]} 43. Ba3 {[%emt 0:00:48]} N6d7 {[%emt 0:00:36]} 44. Nf4 {[%emt 0:00:16]} Qc2+ {[%emt 0:00:14]} 45. Kh3 {[%emt 0:00:12]} g5 {[%emt 0:00:41]} 46. Nd3 {[%emt 0:00:32]} Qc8 {[%emt 0:00:27]} 47. Kg2 {[%emt 0:00:24]} gxh4 {[%emt 0:00:18]} 48. g4 {[%emt 0:00:04]} Qc2+ {[%emt 0:00:18]} 49. Kh3 {[%emt 0:00:22]} Qd1 {[%emt 0:00:15]} 50. Ne1 {[%emt 0:00:36]} Nf6 {[%emt 0:00:53]} 51. Bd6 {[%emt 0:00:33]} N8h7 {[%emt 0:00:27]} 52. Bf4 {[%emt 0:00:26]} Qb1 {[%emt 0:00:50]} 53. Bxh6 {[%emt 0:00:14]} Qb4 {[%emt 0:00:36]} 54. Nd3 {[%emt 0:00:21]} Qb1 {[%emt 0:00:26]} 55. Kxh4 {[%emt 0:01:10]} Nf8 {[%emt 0:00:28]} 56. Kg3 {[%emt 0:00:16]} Qh1 {[%emt 0:00:39]} 57. Ne5 {[%emt 0:00:22]} Ne6 {[%emt 0:00:30]} 58. Nxf7 {[%emt 0:00:17]} Kxf7 {[%emt 0:00:12]} 59. Bd3 {[%emt 0:00:54]} Qd1 {[%emt 0:00:24]} 60. Bf4 {[%emt 0:00:57]} Qxa4 {[%emt 0:00:18]} 61. Be5 {[%emt 0:00:34]} Qd1 {[%emt 0:00:48]} 62. Bf5 {[%emt 0:00:22]} Ng7 {[%emt 0:00:31]} 63. Bc8 {[%emt 0:00:17]} Qc2 {[%emt 0:00:45]} 64. Qf4 {[%emt 0:00:38]} Qc6 {[%emt 0:00:29]} 65. Bd7 {[%emt 0:01:03]} Qxd7 {[%emt 0:00:23]} 66. Qxf6+ {[%emt 0:00:06]} Kg8 {[%emt 0:00:02]} 67. Qxb6 {[%emt 0:00:07]} a4 {[%emt 0:00:07]} 68. Qa6 {[%emt 0:00:34]} Ne6 {[%emt 0:01:18]} 69. f4 {[%emt 0:00:15]} Qe8 {[%emt 0:00:10]} 70. f5 {[%emt 0:00:50]} Ng5 {[%emt 0:00:29]} 71. Qh6 {[%emt 0:00:25]} Qe7 {[%emt 0:00:33]} 72. Kf4 {[%emt 0:00:39]} a3 {[%emt 0:00:21]} 73. Qg6+ {[%emt 0:00:27]} Kf8 {[%emt 0:00:08]} 74. Bd6 {[%emt 0:00:11]} Nh3+ {[%emt 0:00:57] Ke4} 1-0

[Event "1st Goa GM Open 2018"]
[Site "Taleigao"]
[Date "2018.10.14"]
[Round "3"]
[White "Stany, G.A."]
[Black "Karthik Kumar Pradeep"]
[Result "1-0"]
[ECO "B47"]
[WhiteElo "2502"]
[BlackElo "2265"]
[Annotator "RC"]
[PlyCount "45"]
[EventDate "2018.10.13"]
[EventType "swiss"]
[EventCountry "IND"]
[SourceTitle "playchess.com"]
[Source "ChessBase"]
[SourceQuality "1"]
[TimeControl "5400+30"]

1. e4 {[%emt 0:00:00]} c5 {[%emt 0:00:04]} 2. Nf3 {[%emt 0:00:00]} e6 {[%emt 0:00:16]} 3. d4 {[%emt 0:00:00]} cxd4 {[%emt 0:00:04]} 4. Nxd4 {[%emt 0:00:00]} Nc6 {[%emt 0:00:08]} 5. Nc3 {[%emt 0:00:00]} Qc7 {[%emt 0:00:05]} 6. f4 {[%emt 0:00:00]} a6 {[%emt 0:00:58]} 7. Nxc6 {[%emt 0:00:07]} bxc6 {[%emt 0:00:30]} 8. Bd3 {[%emt 0:00:05]} d6 {[%emt 0:12:02]} 9. O-O {[%emt 0:03:49]} Nf6 {[%emt 0:00:09]} 10. b3 {[%emt 0:01:29]} Be7 {[%emt 0:00:53]} 11. Bb2 {[%emt 0:00:04]} e5 {[%emt 0:03:30]} 12. Na4 {[%emt 0:02:10]} O-O {[%emt 0:03:56]} 13. Qf3 {[%emt 0:03:58]} exf4 {[%emt 0:20:28]} 14. Qxf4 {[%emt 0:00:09]} Ng4 {[%emt 0:00:30]} 15. Bc4 {[%emt 0:02:00]} Bf6 {[%emt 0:00:09]} 16. Bxf6 {[%emt 0:00:59]} Nxf6 {[%emt 0:00:01]} 17. Rad1 {[%emt 0:00:38]} Rd8 {[%emt 0:01:02]} 18. e5 {[%emt 0:05:15]} dxe5 {[%emt 0:02:26]} 19. Qxe5 {[%emt 0:00:20]} Qa7+ {[%emt 0:00:02]} 20. Qc5 {[%emt 0:00:16]} Rxd1 {[%emt 0:08:07]} 21. Rxd1 {[%emt 0:00:16]} Nd7 {[%emt 0:00:08]} 22. Qxa7 {[%emt 0:00:08]} Rxa7 {[%emt 0:00:01]} 23. Nb6 {[%emt 0:00:09]} 1-0

[Event "1st Goa GM Open 2018"]
[Site "Taleigao"]
[Date "2018.10.14"]
[Round "3"]
[White "Fominyh, Alexander"]
[Black "Venkata Ramana, J."]
[Result "0-1"]
[ECO "E62"]
[WhiteElo "2405"]
[BlackElo "2086"]
[Annotator "NA"]
[PlyCount "94"]
[EventDate "2018.10.13"]
[EventType "swiss"]
[EventCountry "IND"]
[SourceTitle "playchess.com"]
[Source "ChessBase"]
[SourceQuality "1"]
[TimeControl "5400+30"]

1. d4 {[%emt 0:00:14]} Nf6 {[%emt 0:00:00]} 2. Nf3 {[%emt 0:00:12]} g6 {[%emt 0:00:00]} 3. g3 {[%emt 0:00:29]} Bg7 {[%emt 0:00:00]} 4. Bg2 {[%emt 0:00:08]} O-O {[%emt 0:00:00]} 5. c4 {[%emt 0:00:11]} d6 {[%emt 0:00:02]} 6. O-O {[%emt 0:00:10]} c6 {[%emt 0:00:17]} 7. Nc3 {[%emt 0:00:18]} Qa5 {[%emt 0:00:05]} 8. e4 {[%emt 0:00:53]} e5 {[%emt 0:01:27]} 9. d5 {[%emt 0:01:22]} cxd5 {[%emt 0:02:18]} 10. cxd5 {[%emt 0:00:33]} b5 {[%emt 0:01:17]} 11. Nd2 {[%emt 0:02:39]} b4 {[%emt 0:05:03]} 12. Nb3 {[%emt 0:00:10]} Qd8 {[%emt 0:30:19]} 13. Ne2 {[%emt 0:01:30]} a5 {[%emt 0:02:27]} 14. a3 {[%emt 0:00:20]} Na6 {[%emt 0:03:53]} 15. axb4 {[%emt 0:12:35]} axb4 {[%emt 0:10:48]} 16. Bd2 {[%emt 0:08:47]} Bd7 $11 {[%emt 0:00:23]} 17. Nec1 {[%emt 0:00:07]} Bb5 {[%emt 0:03:37]} 18. Re1 {[%emt 0:00:07]} Nd7 {[%emt 0:24:50]} 19. Bf1 {[%emt 0:16:56]} Bxf1 {[%emt 0:00:29]} 20. Rxf1 {[%emt 0:00:07]} f5 {[%emt 0:02:19]} 21. Qe2 {[%emt 0:00:19]} Nac5 {[%emt 0:01:42]} 22. Rxa8 {[%emt 0:01:27]} Qxa8 {[%emt 0:00:02]} 23. Nxc5 {[%emt 0:00:28]} Nxc5 {[%emt 0:00:33]} 24. exf5 {[%emt 0:00:32]} gxf5 {[%emt 0:00:47]} 25. Qc4 {[%emt 0:04:05]} Rc8 {[%emt 0:03:51]} 26. Be3 {[%emt 0:04:46]} e4 {[%emt 0:03:15]} 27. Bxc5 {[%emt 0:08:07]} Rxc5 {[%emt 0:00:02]} 28. Qxb4 {[%emt 0:00:08]} Qxd5 {[%emt 0:00:08]} 29. Qb8+ {[%emt 0:00:45]} Bf8 {[%emt 0:01:12]} 30. Ne2 {[%emt 0:00:33]} Rb5 {[%emt 0:01:24]} 31. Qc8 {[%emt 0:00:57]} Qb7 32. Rc1 {[%emt 0:08:50]} Qxc8 {[%emt 0:00:40]} 33. Rxc8 {[%emt 0:00:06]} Kf7 {[%emt 0:01:56]} 34. Rc7+ {[%emt 0:06:19]} Kg8 {[%emt 0:00:02]} 35. Nd4 {[%emt 0:00:23]} Rxb2 {[%emt 0:01:34]} 36. Nxf5 {[%emt 0:00:24]} Rb1+ {[%emt 0:00:41]} 37. Kg2 {[%emt 0:00:07]} Rd1 {[%emt 0:00:12]} 38. g4 {[%emt 0:09:17]} d5 {[%emt 0:00:50]} 39. Ne3 {[%emt 0:00:08]} Rd2 {[%emt 0:00:26]} 40. Rd7 {[%emt 0:00:24]} Bc5 {[%emt 0:00:19]} 41. Nxd5 {[%emt 0:01:05]} Rxf2+ {[%emt 0:00:14]} 42. Kg3 {[%emt 0:00:36]} e3 {[%emt 0:00:38]} 43. Nf4 {[%emt 0:03:32]} Rxf4 {[%emt 0:00:32]} 44. Kxf4 {[%emt 0:01:18]} e2 {[%emt 0:00:02]} 45. Rd5 {[%emt 0:01:34]} e1=Q {[%emt 0:00:35]} 46. Rg5+ {[%emt 0:00:05]} Kh8 {[%emt 0:00:16]} 47. h4 Qe2 0-1